bitfinex-derivatives/quotes_BNBF0:USTF0_20250510
["timestamp","ask_amount","ask_price","bid_price","bid_amount"]
[1746873722979,0.30364679,658.66,656.95,0.92589265]
[1746873723178,0.30364679,658.66,656.96,0.92589265]
[1746873723383,0.30364679,658.66,656.97,1.20509972]
[1746873723579,0.30364679,658.66,656.98,0.92589265]
[1746873723783,0.30364679,658.66,656.99,1.20509972]
[1746873723979,0.30364679,658.66,657.0,0.92589265]
[1746873724185,0.30364679,658.66,657.01,0.92589265]
[1746873724380,0.30364679,658.66,657.02,1.20509972]
[1746873724580,0.30364679,658.66,657.03,0.92589265]
[1746873724780,0.30364679,658.66,657.04,0.92589265]
[1746873724984,0.30364679,658.66,657.05,1.20509972]
[1746873725182,0.30364679,658.66,657.06,0.92589265]
[1746873725485,0.30364679,658.66,657.07,0.92589265]
[1746873725686,0.30364679,658.66,657.08,0.92589265]
[1746873725881,0.30364679,658.66,657.09,0.92589265]
[1746873726083,0.30364679,658.66,657.1,0.92589265]
[1746873726284,0.30364679,658.66,657.11,0.92589265]
[1746873726486,0.30364679,658.66,657.12,0.92589265]
[1746873726686,0.30364679,658.66,657.13,0.92589265]
[1746873726886,0.30364679,658.66,657.14,0.92589265]
[1746873727086,0.30364679,658.66,657.15,0.92589265]
[1746873727286,0.30364679,658.66,657.16,0.92589265]
[1746873727486,0.30364679,658.66,657.17,0.92417733]
[1746873727687,0.30364679,658.66,657.18,0.92417733]
[1746873727885,0.30364679,658.66,657.19,0.92417733]
[1746873728081,0.30364679,658.66,657.2,0.92417733]
[1746873728282,0.30364679,658.66,657.21,0.92417733]
[1746873728482,0.30364679,658.66,657.22,0.92417733]
[1746873728680,0.30364679,658.66,657.23,1.20335462]
[1746873728885,0.30364679,658.66,657.24,0.92417733]
[1746873729087,0.30364679,658.66,657.25,1.20335462]
[1746873729287,0.30364679,658.66,657.26,0.92417733]
[1746873729588,0.30364679,658.66,657.27,1.20335462]
[1746873729786,0.30364679,658.66,657.28,0.92417733]
[1746873729988,0.30364679,658.66,657.29,0.92417733]
[1746873730182,0.30364679,658.66,657.3,1.20335462]
[1746873730384,0.30364679,658.66,657.31,0.92417733]
[1746873730585,0.30364679,658.66,657.32,1.20335462]
[1746873730785,0.30364679,658.66,657.33,0.92417733]
[1746873730982,0.30364679,658.66,657.34,0.92417733]
[1746873731183,0.30364679,658.66,657.35,0.92417733]
[1746873731384,0.30364679,658.66,657.36,0.92417733]
[1746873731583,0.30364679,658.66,657.37,0.92417733]
[1746873731886,0.30364679,658.66,657.38,1.20335462]
[1746873732088,0.30364679,658.66,657.39,0.92417733]
[1746873732387,0.30364679,658.66,657.4,0.92417733]
[1746873732587,0.30364679,658.66,657.41,0.92417733]
[1746873732887,0.30364679,658.66,657.42,1.20335462]
[1746873733087,0.30364679,658.66,657.43,0.92417733]
[1746873733287,0.30364679,658.66,657.44,0.92417733]
[1746873733483,0.30364679,658.66,657.43,0.27917729]
[1746873733484,0.30364679,658.66,657.45,0.92417733]
[1746873733680,0.30364679,658.66,657.46,0.92417733]
[1746873733885,0.30364679,658.66,657.47,1.20333838]
[1746873734087,0.30364679,658.66,657.48,0.92417733]
[1746873734288,0.30364679,658.66,657.49,0.92417733]
[1746873734489,0.30364679,658.66,657.5,0.92417733]
[1746873734789,0.30364679,658.66,657.51,0.92417733]
[1746873734986,0.30364679,658.66,657.52,0.92417733]
[1746873735188,0.30364679,658.66,657.53,0.92417733]
[1746873735384,0.30364679,658.66,657.54,0.92417733]
[1746873735584,0.30364679,658.66,657.55,0.92417733]
[1746873735787,0.30364679,658.66,657.56,0.92417733]
[1746873735989,0.30364679,658.66,657.57,0.92417733]
[1746873736290,0.30364679,658.66,657.58,0.92371642]
[1746873736490,0.30364679,658.66,657.59,0.92371642]
[1746873736789,0.30364679,658.66,657.6,0.92371642]
[1746873737089,0.30364679,658.66,657.61,0.92371642]
[1746873737283,0.30364679,658.66,657.62,0.92371642]
[1746873737483,0.30364679,658.66,657.18,0.92371642]
[1746873737687,0.30364679,658.66,657.19,1.20286174]
[1746873737887,0.30364679,658.66,657.2,0.92371642]
[1746873738088,0.30364679,658.66,657.21,0.92371642]
[1746873738285,0.30364679,658.66,657.22,1.20286174]
[1746873738484,0.30364679,658.66,657.23,0.92371642]
[1746873738886,0.30364679,658.66,657.24,0.92371642]
[1746873739091,0.30364679,658.66,657.25,0.92371642]
[1746873739293,0.30364679,658.66,657.26,0.27914106]
[1746873739596,0.30364679,658.66,657.27,0.92371642]
[1746873739793,0.30364679,658.66,657.28,0.92392085]
[1746873739990,0.30364679,658.66,657.29,0.92392085]
[1746873740187,0.30364679,658.66,657.3,0.92392085]
[1746873740592,0.30364679,658.66,657.31,0.27914106]
[1746873740794,0.30364679,658.66,657.32,0.92392085]
[1746873741393,0.30364679,658.66,657.33,0.92392085]
[1746873741595,0.30364679,658.66,657.34,0.92392085]
[1746873741995,0.30364679,658.66,657.35,0.27914478]
[1746873742192,0.30364679,658.66,657.36,0.92392085]
[1746873742590,0.30364679,658.66,657.37,0.27914478]
[1746873742794,0.30364679,658.66,657.38,0.92392085]
[1746873742994,0.30364679,658.66,657.39,0.27914478]
[1746873743193,0.30364679,658.66,657.4,0.92392085]
[1746873743894,0.30364679,658.66,657.41,0.27914478]
[1746873744096,0.30364679,658.66,657.42,0.92392085]
[1746873744595,0.30364679,658.66,657.43,0.27914478]
[1746873744796,0.30364679,658.66,657.44,0.92392085]
[1746873745095,0.30364679,658.66,657.45,0.92421569]
[1746873745294,0.30364679,658.66,657.46,0.92421569]
[1746873745499,0.30364679,658.66,657.47,0.92421569]
[1746873745694,0.30364679,658.66,657.48,0.92422955]
[1746873745889,0.30364679,658.66,657.49,0.92422955]
[1746873746093,0.30364679,658.66,657.5,0.92422955]
[1746873746290,0.30364679,658.66,657.51,0.92422955]
[1746873746598,0.30364679,658.66,657.52,0.27914478]
[1746873746798,0.30364679,658.66,657.53,0.92422955]
[1746873746996,0.30364679,658.66,657.54,0.92425567]
[1746873747196,0.30364679,658.66,657.55,0.92425567]
[1746873747498,0.30364679,658.66,657.56,0.92425567]
[1746873747698,0.30364679,658.66,657.57,0.27914478]
[1746873747898,0.30364679,658.66,657.58,0.92425567]
[1746873748506,0.30364679,658.66,657.59,0.27914478]
[1746873748802,0.30364679,658.66,657.6,0.92434525]
[1746873748999,0.30364679,658.66,657.61,0.92434525]
[1746873749300,0.30364679,658.66,657.62,1.20349003]
[1746873749498,0.30364679,658.66,657.63,0.92434525]
[1746873749695,0.30364679,658.66,657.63,1.20349003]
[1746873749898,0.30364679,658.66,657.64,1.20349003]
[1746873750094,0.30364679,658.66,657.65,0.92434525]
[1746873750302,0.30364679,658.66,657.65,1.20349003]
[1746873750495,0.30364679,658.66,657.66,0.92443738]
[1746873750694,0.30364679,658.66,657.67,0.92443738]
[1746873750895,0.30364679,658.66,657.68,0.92443738]
[1746873751100,0.30364679,658.66,657.69,0.92443738]
[1746873751299,0.30364679,658.66,657.7,0.92448304]
[1746873751503,0.30364679,658.66,657.49,0.26432019]
[1746873751695,0.30364679,658.66,657.5,0.92451959]
[1746873751894,0.30364679,658.66,657.51,0.92451959]
[1746873752201,0.30364679,658.66,657.52,0.27915183]
[1746873752401,0.30364679,658.66,657.53,0.92451959]
[1746873752797,0.30364679,658.66,657.54,0.27915183]
[1746873752998,0.30364679,658.66,657.55,0.92451959]
[1746873753199,0.30364679,658.66,657.56,0.27915183]
[1746873753400,0.30364679,658.66,657.57,0.92451959]
[1746873753807,0.30364679,658.66,657.58,0.27915183]
[1746873754106,0.30364679,658.66,657.59,0.92480903]
[1746873754298,0.30364679,658.66,657.6,0.92480903]
[1746873754500,0.30364679,658.66,657.61,0.92480903]
[1746873755004,0.30364679,658.66,657.62,0.92480903]
[1746873755302,0.30364679,658.66,657.63,0.92480903]
[1746873755515,0.30364679,658.66,657.64,0.92480903]
[1746873755703,0.30364679,658.66,657.65,0.92480903]
[1746873756004,0.30364679,658.66,657.66,0.92521214]
[1746873756202,0.30364679,658.66,657.67,0.92521214]
[1746873756399,0.30364679,658.66,657.68,0.92521214]
[1746873756598,0.30364679,658.66,657.69,0.92521214]
[1746873756803,0.30364679,658.66,657.7,0.92521214]
[1746873757004,0.30364679,658.66,657.71,0.92521214]
[1746873757203,0.30364679,658.66,657.72,0.92521214]
[1746873757404,0.30364679,658.66,657.57,0.26430413]
[1746873757703,0.30364679,658.66,657.58,0.92567489]
[1746873758003,0.30364679,658.66,657.59,0.92567489]
[1746873758405,0.30364679,658.66,657.6,0.92567489]
[1746873758705,0.30364679,658.66,657.61,0.92567489]
[1746873758898,0.30364679,658.66,657.62,0.92567489]
[1746873759103,0.30364679,658.66,657.63,0.92567489]
[1746873759301,0.30364679,658.66,657.64,0.92567489]
[1746873759499,0.30364679,658.66,657.65,0.92567489]
[1746873759706,0.30364679,658.66,657.66,0.92567489]
[1746873759903,0.30364679,658.66,657.67,0.92567489]
[1746873760103,0.30364679,658.66,657.68,0.92567489]
[1746873760305,0.30364679,658.66,657.69,0.92567489]
[1746873760505,0.30364679,658.66,657.7,0.92567489]
[1746873760706,0.30364679,658.66,657.71,0.92567489]
[1746873760903,0.30364679,658.66,657.72,0.92567489]
[1746873761106,0.30364679,658.66,657.59,0.2643212]
[1746873761304,0.30364679,658.66,657.6,0.92666145]
[1746873761504,0.30364679,658.66,657.61,0.92666145]
[1746873762208,0.30364679,658.66,657.62,0.92666145]
[1746873762508,0.30364679,658.66,657.63,0.92666145]
[1746873762706,0.30364679,658.66,657.6,0.2643222]
[1746873762707,0.30364679,658.66,657.64,0.92666145]
[1746873762904,0.30364679,658.66,657.65,0.92666145]
[1746873763108,0.30364679,658.66,657.66,0.92666145]
[1746873763309,0.30364679,658.66,657.67,0.92666145]
[1746873763510,0.30364679,658.66,657.68,0.92666145]
[1746873763705,0.30364679,658.66,657.69,0.92666145]
[1746873766308,0.30364679,658.66,657.68,0.643]
[1746873766508,0.30364679,658.66,657.69,0.92890916]
[1746873766711,0.30364679,658.66,657.7,0.92890916]
[1746873767016,0.30364679,658.66,657.71,0.92894295]
[1746873767218,0.30364679,658.66,657.72,0.92894295]
[1746873767516,0.30364679,658.66,657.73,0.92894295]
[1746873767715,0.30364679,658.66,657.74,0.92894295]
[1746873767916,0.30364679,658.66,657.75,0.92894295]
[1746873770619,0.30364679,658.66,657.74,0.594]
[1746873771119,0.30364679,658.66,657.75,0.92992473]
[1746873771414,0.30364679,658.66,657.76,0.92992473]
[1746873772119,0.30364679,658.66,657.74,0.594]
[1746873773619,0.25432924,658.65,657.74,0.594]
[1746873774320,0.26435633,658.64,657.74,0.594]
[1746873774621,0.25432924,658.63,657.74,0.594]
[1746873775622,0.26435633,658.64,657.74,0.594]
[1746873777026,0.30364679,658.66,657.74,0.594]
[1746873777325,0.2643483,658.63,657.74,0.594]
[1746873780029,0.30364679,658.66,657.74,0.594]
[1746873780432,0.2643483,658.62,657.74,0.594]
[1746873781231,0.2643483,658.62,657.75,0.454]
[1746873783132,0.30364679,658.66,657.75,0.454]
[1746873783432,0.26435633,658.61,657.75,0.454]
[1746873786032,0.30364679,658.66,657.75,0.454]
[1746873786333,0.26435633,658.6,657.75,0.454]
[1746873786534,0.30368368,658.58,657.75,0.454]
[1746873789338,0.26436236,658.57,657.75,0.454]
[1746873789537,0.30369751,658.55,657.75,0.454]
[1746873793344,0.26435633,658.54,657.75,0.454]
[1746873793543,0.30370674,658.53,657.75,0.454]
[1746873795345,0.26436838,658.52,657.75,0.454]
[1746873795545,0.30371596,658.51,657.75,0.454]
[1746873799248,0.30371596,658.51,657.74,0.594]
[1746873801947,0.30371596,658.51,657.75,0.554]
[1746873808456,0.30371596,658.51,657.76,0.465]
[1746873824466,0.30371596,658.51,657.77,0.93186203]
[1746873824765,0.30371596,658.51,657.76,0.465]
[1746873824966,0.30371596,658.51,657.77,0.93185832]
[1746873825166,0.30371596,658.51,657.76,0.465]
[1746873825367,0.30371596,658.51,657.77,0.9318583]
[1746873825666,0.30371596,658.51,657.76,0.465]
[1746873825867,0.30371596,658.51,657.77,0.93186609]
[1746873826067,0.30371596,658.51,657.76,0.465]
[1746873826269,0.30371596,658.51,657.77,0.93186609]
[1746873826568,0.30371596,658.51,657.76,0.465]
[1746873826762,0.30371596,658.51,657.77,0.93198909]
[1746873826965,0.30371596,658.51,657.76,0.465]
[1746873827165,0.30371596,658.51,657.77,0.9320201]
[1746873827367,0.30371596,658.51,657.76,0.465]
[1746873827665,0.30371596,658.51,657.77,0.9320281]
[1746873827865,0.30371596,658.51,657.76,0.465]
[1746873828062,0.30371596,658.51,657.77,0.93231794]
[1746873828264,0.30371596,658.51,657.78,0.93241061]
[1746873828467,0.30371596,658.51,657.76,0.465]
[1746873828668,0.30371596,658.51,657.77,0.93241483]
[1746873828868,0.30371596,658.51,657.76,0.465]
[1746873829065,0.30371596,658.51,657.77,0.93241618]
[1746873829263,0.30371596,658.51,657.78,0.93241618]
[1746873829464,0.30371596,658.51,657.76,0.465]
[1746873829664,0.30371596,658.51,657.77,0.9324908]
[1746873829866,0.30371596,658.51,657.78,0.9324908]
[1746873830065,0.30371596,658.51,657.76,0.465]
[1746873830267,0.30371596,658.51,657.79,0.513]
[1746873841282,0.30371596,658.51,657.8,0.443]
[1746873861004,0.25437347,658.5,657.8,0.443]
[1746873861501,0.30372518,658.49,657.8,0.443]
[1746873862204,0.25437347,658.48,657.8,0.443]
[1746873862405,0.30373441,658.47,657.8,0.443]
[1746873866208,0.30373441,658.47,657.81,0.646]
[1746873867107,0.25443397,658.46,657.81,0.646]
[1746873867301,0.30374364,658.45,657.81,0.646]
[1746873870708,0.25445178,658.44,657.81,0.646]
[1746873871008,0.30375286,658.43,657.81,0.646]
[1746873877812,0.25453157,658.42,657.81,0.646]
[1746873878003,0.30376209,658.41,657.81,0.646]
[1746873878208,0.25453157,658.4,657.81,0.646]
[1746873878510,0.30377132,658.39,657.81,0.646]
[1746873882314,0.26444573,658.38,657.81,0.646]
[1746873882513,0.30378054,658.37,657.81,0.646]
[1746873885314,0.26444975,658.36,657.81,0.646]
[1746873885512,0.30378977,658.35,657.81,0.646]
[1746873889722,0.25475869,658.34,657.81,0.646]
[1746873889916,0.303799,658.33,657.81,0.646]
[1746873890622,0.25480892,658.32,657.81,0.646]
[1746873890820,0.30380823,658.31,657.81,0.646]
[1746873891521,0.26446783,658.3,657.81,0.646]
[1746873891721,0.30381746,658.29,657.81,0.646]
[1746873892022,0.55863285,658.29,657.81,0.646]
[1746873892318,0.25481539,658.28,657.81,0.646]
[1746873892524,0.30382669,658.27,657.81,0.646]
[1746873897524,0.26446984,658.26,657.81,0.646]
[1746873897725,0.30383592,658.25,657.81,0.646]
[1746873900529,0.26447185,658.24,657.81,1.225]
[1746873900729,0.30384516,658.23,657.81,1.225]
[1746873903832,0.26442162,658.22,657.81,1.225]
[1746873904032,0.30385439,658.21,657.81,1.225]
[1746873905433,0.2547592,658.2,657.81,1.225]
[1746873905735,0.30386362,658.19,657.81,1.225]
[1746873906735,0.25475698,658.18,657.81,1.225]
[1746873907036,0.30387285,658.17,657.81,1.225]
[1746873908236,0.25475654,658.16,657.81,1.225]
[1746873908835,0.30388209,658.15,657.81,1.225]
[1746874048451,0.25541189,658.14,657.81,1.225]
[1746874048653,0.30389132,658.13,657.81,1.225]
[1746874049552,0.25538436,658.12,657.81,1.225]
[1746874049751,0.30390056,658.11,657.81,1.225]
[1746874050153,0.25538436,658.1,657.81,1.225]
[1746874050453,0.30390979,658.09,657.81,1.225]
[1746874050748,0.25538436,658.08,657.81,1.225]
[1746874050952,0.30391903,658.07,657.81,1.225]
[1746874053049,0.26450603,658.06,657.81,1.225]
[1746874053251,0.30392827,658.05,657.81,1.225]
[1746874054257,0.26447185,658.04,657.81,1.225]
[1746874054458,0.30393751,658.03,657.81,1.225]
[1746874057061,0.26453418,658.02,657.81,1.225]
[1746874057262,0.30394674,658.01,657.81,1.225]
[1746874058360,0.25535603,658.0,657.81,1.225]
[1746874058563,0.30395598,657.99,657.81,1.225]
[1746874059164,0.25535603,657.98,657.81,1.225]
[1746874059463,0.30396522,657.97,656.92,0.26453418]
[1746874059861,0.25535603,657.96,656.71,0.30454843]
[1746874060264,0.30397908,657.94,656.72,0.27953999]
[1746874060663,0.25535603,657.93,656.72,0.27953999]
[1746874060864,0.30399294,657.91,656.72,0.27953999]
[1746874061065,0.25535603,657.9,656.72,0.27953999]
[1746874061264,0.3040068,657.88,656.73,0.26468508]
[1746874061667,0.3040068,657.88,656.74,0.4]
[1746874063061,0.3040068,657.88,656.75,0.454]
[1746874069270,0.26466797,657.87,656.75,0.454]
[1746874070571,0.30402067,657.85,656.75,0.454]
[1746874071672,0.25515377,657.84,656.75,0.454]
[1746874071971,0.30403453,657.82,656.75,0.454]
[1746874072366,0.25515377,657.81,656.75,0.454]
[1746874072570,0.3040484,657.79,656.75,0.454]
[1746874074671,0.3040484,657.79,656.76,0.464]
[1746874075073,0.26472837,657.78,656.76,0.464]
[1746874075264,0.30406227,657.76,656.76,0.464]
[1746874078176,0.26466696,657.75,656.76,0.464]
[1746874078376,0.30407614,657.73,656.76,0.464]
[1746874078770,0.25499643,657.72,656.76,0.464]
[1746874078970,0.30409001,657.7,656.76,0.464]
[1746874079470,0.25499643,657.69,656.76,0.464]
[1746874079675,0.30410388,657.67,656.76,0.464]
[1746874081377,0.26477067,657.66,656.76,0.464]
[1746874081577,0.30411775,657.64,656.76,0.464]
[1746874083279,0.2646408,657.63,656.76,0.464]
[1746874083482,0.30413162,657.61,656.76,0.464]
[1746874085782,0.30413162,657.61,656.75,0.454]
[1746874087384,0.26467904,657.6,656.75,0.454]
[1746874087783,0.3041455,657.58,656.75,0.454]
[1746874087984,0.3041455,657.58,656.76,0.462]
[1746874090289,0.56890307,657.58,656.76,0.462]
[1746874092791,0.3041455,657.58,656.76,0.462]
[1746874100393,0.3041455,657.58,656.77,1.19992581]
[1746874100588,0.3041455,657.58,656.77,0.2795453]
[1746874100787,0.3041455,657.58,656.76,0.462]
[1746874100988,0.3041455,657.58,656.77,0.92047479]
[1746874101293,0.3041455,657.58,656.78,0.92120388]
[1746874101493,0.3041455,657.58,656.79,0.92120388]
[1746874101792,0.3041455,657.58,656.8,0.92120388]
[1746874101990,0.3041455,657.58,656.76,0.462]
[1746874102195,0.3041455,657.58,656.77,0.92193923]
[1746874102493,0.3041455,657.58,656.78,0.92194081]
[1746874102693,0.3041455,657.58,656.79,0.92194081]
[1746874102893,0.3041455,657.58,656.8,0.92194081]
[1746874103094,0.3041455,657.58,656.81,0.92194081]
[1746874103395,0.3041455,657.58,656.76,0.462]
[1746874103587,0.3041455,657.58,656.77,0.92205358]
[1746874103796,0.3041455,657.58,656.78,0.92205358]
[1746874103993,0.3041455,657.58,656.79,0.92205358]
[1746874104194,0.3041455,657.58,656.8,0.92270886]
[1746874104398,0.3041455,657.58,656.81,0.92270886]
[1746874104595,0.3041455,657.58,656.82,0.92270886]
[1746874104797,0.3041455,657.58,656.76,0.462]
[1746874104995,0.3041455,657.58,656.77,0.92275198]
[1746874105301,0.3041455,657.58,656.78,0.92275198]
[1746874105601,0.3041455,657.58,656.79,0.92275198]
[1746874105802,0.3041455,657.58,656.8,0.92275198]
[1746874106101,0.3041455,657.58,656.81,0.92275198]
[1746874106301,0.3041455,657.58,656.82,0.92275198]
[1746874106496,0.3041455,657.58,656.83,0.92275198]
[1746874106696,0.3041455,657.58,656.84,0.92371799]
[1746874106900,0.3041455,657.58,656.85,0.92371799]
[1746874107100,0.3041455,657.58,656.86,0.92371799]
[1746874107301,0.3041455,657.58,656.87,0.92371799]
[1746874107498,0.3041455,657.58,656.88,0.92371799]
[1746874107798,0.3041455,657.58,656.89,0.92371799]
[1746874107998,0.3041455,657.58,656.9,0.92371799]
[1746874108201,0.3041455,657.58,656.91,0.92371799]
[1746874108398,0.3041455,657.58,656.92,0.92371799]
[1746874108701,0.3041455,657.58,656.93,0.92376962]
[1746874108898,0.3041455,657.58,656.82,0.26456133]
[1746874109203,0.3041455,657.58,656.83,0.9237637]
[1746874109403,0.3041455,657.58,656.84,0.9237637]
[1746874109603,0.3041455,657.58,656.85,0.9237637]
[1746874109899,0.3041455,657.58,656.86,0.9237637]
[1746874110102,0.3041455,657.58,656.87,0.9237637]
[1746874110304,0.3041455,657.58,656.88,0.9237637]
[1746874110500,0.3041455,657.58,656.89,0.9237637]
[1746874110700,0.3041455,657.58,656.9,0.9237637]
[1746874110901,0.3041455,657.58,656.76,0.462]
[1746874111101,0.3041455,657.58,656.77,0.92367622]
[1746874111301,0.3041455,657.58,656.78,0.92367622]
[1746874111496,0.3041455,657.58,656.79,0.92367622]
[1746874111701,0.3041455,657.58,656.8,0.92367622]
[1746874111903,0.3041455,657.58,656.81,0.92367622]
[1746874112099,0.3041455,657.58,656.82,1.2031568]
[1746874112298,0.3041455,657.58,656.83,0.92367622]
[1746874112498,0.3041455,657.58,656.84,0.92367622]
[1746874112698,0.3041455,657.58,656.85,0.92349373]
[1746874112896,0.3041455,657.58,656.86,0.92349373]
[1746874113098,0.3041455,657.58,656.87,0.92349373]
[1746874113298,0.3041455,657.58,656.88,0.92349373]
[1746874113497,0.3041455,657.58,656.89,0.92349373]
[1746874113797,0.3041455,657.58,656.9,0.92349373]
[1746874113998,0.3041455,657.58,656.91,0.92349373]
[1746874114201,0.3041455,657.58,656.92,0.92349373]
[1746874114399,0.3041455,657.58,656.93,0.92340445]
[1746874114604,0.3041455,657.58,656.94,0.92340445]
[1746874114802,0.3041455,657.58,656.95,0.92340445]
[1746874115004,0.3041455,657.58,656.76,0.462]
[1746874115203,0.3041455,657.58,656.86,0.26455931]
[1746874115400,0.3041455,657.58,656.87,0.92334108]
[1746874115603,0.3041455,657.58,656.88,0.92334108]
[1746874115800,0.3041455,657.58,656.89,0.92334108]
[1746874116004,0.3041455,657.58,656.9,0.92334108]
[1746874116205,0.3041455,657.58,656.91,1.20278609]
[1746874116507,0.3041455,657.58,656.92,1.20278609]
[1746874116703,0.3041455,657.58,656.93,0.92334108]
[1746874116903,0.3041455,657.58,656.94,0.92334108]
[1746874117103,0.3041455,657.58,656.95,0.92334108]
[1746874117307,0.3041455,657.58,656.96,0.92334108]
[1746874117504,0.3041455,657.58,656.97,0.92334108]
[1746874117810,0.3041455,657.58,656.98,0.92334108]
[1746874118109,0.3041455,657.58,656.99,0.92334108]
[1746874118309,0.3041455,657.58,657.0,0.92334108]
[1746874118510,0.3041455,657.58,657.01,0.92334108]
[1746874118808,0.3041455,657.58,657.02,0.92334108]
[1746874119009,0.3041455,657.58,657.03,0.92334108]
[1746874119309,0.3041455,657.58,656.88,0.26454624]
[1746874119510,0.3041455,657.58,656.89,1.20225713]
[1746874119709,0.3041455,657.58,656.9,0.92268646]
[1746874119907,0.3041455,657.58,656.91,0.92268646]
[1746874120203,0.3041455,657.58,656.92,0.92268646]
[1746874120401,0.3041455,657.58,656.93,0.92268646]
[1746874120604,0.3041455,657.58,656.94,1.2021277]
[1746874120804,0.3041455,657.58,656.95,0.92268646]
[1746874121003,0.3041455,657.58,656.96,0.92268646]
[1746874121209,0.3041455,657.58,656.97,1.2021277]
[1746874121406,0.3041455,657.58,656.98,0.92268646]
[1746874121608,0.3041455,657.58,656.99,1.2021277]
[1746874121809,0.3041455,657.58,657.0,0.92268646]
[1746874122010,0.3041455,657.58,657.01,0.92268646]
[1746874122211,0.3041455,657.58,657.02,0.92268646]
[1746874122509,0.3041455,657.58,657.03,0.92268646]
[1746874122712,0.3041455,657.58,657.04,0.92268646]
[1746874122911,0.3041455,657.58,657.03,0.398]
[1746874123111,0.3041455,657.58,657.04,0.92199606]
[1746874123311,0.3041455,657.58,657.03,0.398]
[1746874123511,0.3041455,657.58,657.04,0.92199606]
[1746874123811,0.3041455,657.58,657.03,0.398]
[1746874124009,0.3041455,657.58,657.04,0.9218791]
[1746874124209,0.3041455,657.58,657.05,0.9218791]
[1746874124406,0.3041455,657.58,657.06,0.9218791]
[1746874124611,0.3041455,657.58,657.03,0.398]
[1746874124812,0.3041455,657.58,657.04,0.92166219]
[1746874125111,0.3041455,657.58,657.03,0.398]
[1746874125307,0.3041455,657.58,657.04,0.9215925]
[1746874125611,0.3041455,657.58,657.05,0.92146414]
[1746874125812,0.3041455,657.58,657.06,0.92146414]
[1746874126009,0.3041455,657.58,657.07,0.92146414]
[1746874126206,0.3041455,657.58,657.03,0.398]
[1746874126410,0.3041455,657.58,657.04,0.92138176]
[1746874126711,0.3041455,657.58,657.05,0.92130298]
[1746874126912,0.3041455,657.58,657.03,0.398]
[1746874127111,0.3041455,657.58,657.04,0.92130298]
[1746874127312,0.3041455,657.58,657.05,0.92130298]
[1746874127513,0.3041455,657.58,657.03,0.398]
[1746874127709,0.3041455,657.58,657.04,0.92113923]
[1746874127912,0.3041455,657.58,657.05,0.92113923]
[1746874128111,0.3041455,657.58,657.03,0.398]
[1746874128514,0.3041455,657.58,657.04,0.92105833]
[1746874128708,0.3041455,657.58,657.05,0.92105833]
[1746874128912,0.3041455,657.58,657.06,0.92105833]
[1746874129114,0.3041455,657.58,657.07,0.92105833]
[1746874129313,0.3041455,657.58,657.03,0.398]
[1746874129508,0.3041455,657.58,657.04,0.92088316]
[1746874129812,0.3041455,657.58,657.05,0.92088316]
[1746874130012,0.3041455,657.58,657.06,0.92088316]
[1746874130213,0.3041455,657.58,657.07,0.92088316]
[1746874130412,0.3041455,657.58,657.03,0.398]
[1746874130609,0.3041455,657.58,657.04,0.92061271]
[1746874130809,0.3041455,657.58,657.05,0.92061271]
[1746874131008,0.3041455,657.58,657.06,0.92061271]
[1746874131213,0.3041455,657.58,657.07,0.92061271]
[1746874131413,0.3041455,657.58,657.03,0.398]
[1746874131613,0.3041455,657.58,657.08,0.487]
[1746874133515,0.3041455,657.58,657.09,0.92027955]
[1746874133815,0.3041455,657.58,657.08,0.487]
[1746874134012,0.3041455,657.58,657.09,0.92027113]
[1746874134210,0.3041455,657.58,657.1,0.27939929]
[1746874134816,0.3041455,657.58,657.09,0.27939929]
[1746874140319,0.3041455,657.58,657.08,0.75150904]
[1746874140919,0.3041455,657.58,657.09,0.92078212]
[1746874141116,0.3041455,657.58,657.08,0.75150904]
[1746874141519,0.3041455,657.58,657.09,0.92076671]
[1746874141714,0.3041455,657.58,657.08,0.75150904]
[1746874141921,0.3041455,657.58,657.09,0.92076567]
[1746874142221,0.3041455,657.58,657.08,0.75150904]
[1746874142421,0.3041455,657.58,657.09,0.9208089]
[1746874142621,0.3041455,657.58,657.08,0.75150904]
[1746874142919,0.3041455,657.58,657.09,0.92080937]
[1746874143122,0.3041455,657.58,657.08,0.75150904]
[1746874143320,0.3041455,657.58,657.09,0.92080229]
[1746874143521,0.3041455,657.58,657.1,0.92080229]
[1746874143821,0.3041455,657.58,657.08,0.487]
[1746874144020,0.3041455,657.58,657.09,0.9208561]
[1746874144222,0.3041455,657.58,657.09,0.26456133]
[1746874144422,0.3041455,657.58,657.1,0.2794]
[1746874145923,0.3041455,657.58,657.09,0.26456133]
[1746874146423,0.3041455,657.58,657.1,0.9216585]
[1746874146626,0.3041455,657.58,657.09,0.26456133]
[1746874146924,0.3041455,657.58,657.1,0.92165629]
[1746874147123,0.3041455,657.58,657.09,0.26456334]